bitfinex/quotes_SOLUSD_20250728
["timestamp","ask_amount","ask_price","bid_price","bid_amount"]
[1753667951836,0.71,188.57,188.55,37.4]
[1753667952016,0.71,188.59,188.55,41.97368788]
[1753667952219,0.71,188.59,188.55,42.68368788]
[1753667952536,0.71,188.58,188.55,37.4]
[1753667952700,5.28368788,188.58,188.53,4.57368788]
[1753667952905,0.71,188.57,188.53,41.95368788]
[1753667953124,4.57368788,188.58,188.53,41.95368788]
[1753667953302,0.71,188.56,188.54,4.57368788]
[1753667953497,4.57368788,188.59,188.54,4.57368788]
[1753667953702,0.71,188.58,188.54,4.57368788]
[1753667954024,0.71,188.57,188.54,4.57368788]
[1753667955230,0.71,188.56,188.53,41.95368788]
[1753667955407,0.71,188.56,188.53,4.57368788]
[1753667955606,10.58649157,188.58,188.53,10.5878807]
[1753667956310,0.71,188.58,188.54,4.57368788]
[1753667956608,0.71,188.58,188.54,5.28368788]
[1753667956805,9.87622623,188.59,188.54,5.28368788]
[1753667956806,5.30253835,188.59,188.55,0.71]
[1753667957010,6.01253835,188.59,188.54,4.57368788]
[1753667957211,6.01253835,188.59,188.54,5.28368788]
[1753667957424,0.71,188.58,188.54,5.28368788]
[1753667957713,0.71,188.57,188.53,4.57368788]
[1753667957957,0.71,188.56,188.53,4.57368788]
[1753667958811,5.30280638,188.58,188.52,42.66442498]
[1753667958812,0.71,188.55,188.52,42.66442498]
[1753667959033,150.87368788,188.57,188.5,0.71]
[1753667959207,0.71,188.54,188.51,4.57368788]
[1753667959835,0.71,188.56,188.51,4.57368788]
[1753667960036,5.28368788,188.56,188.51,4.57368788]
[1753667960338,5.28368788,188.55,188.5,37.34]
[1753667960506,0.71,188.54,188.5,41.91368788]
[1753667960703,0.71,188.54,188.5,37.34]
[1753667960933,4.57368788,188.55,188.5,37.34]
[1753667961136,0.71,188.53,188.5,41.91368788]
[1753667961719,0.71,188.53,188.5,41.97368788]
[1753667961923,4.57368788,188.55,188.5,41.97368788]
[1753667962128,0.71,188.54,188.51,4.57368788]
[1753667962736,10.5872207,188.56,188.51,4.57368788]
[1753667962917,0.71,188.55,188.5,47.27865662]
[1753667963118,0.71,188.55,188.51,0.71]
[1753667963738,0.71,188.54,188.5,37.4]
[1753667963950,5.28368788,188.54,188.5,0.06]
[1753667964114,0.71,188.53,188.5,0.06]
[1753667964308,0.71,188.52,188.5,0.06]
[1753667964829,0.66,188.51,188.5,0.06]
[1753667965531,5.23368788,188.53,188.5,0.06]
[1753667965742,5.96447697,188.52,188.5,0.06]
[1753667966825,10.53816485,188.52,188.5,0.06]
[1753667967635,146.3,188.51,188.5,0.06]
[1753667968736,151.60475836,188.51,188.5,0.06]
[1753667968919,10.53844624,188.51,188.5,0.06]
[1753667969237,64.64313021,188.51,188.5,0.06]
[1753667972133,4.57368788,188.53,188.5,0.06]
[1753667972442,26.0,188.53,188.5,0.72]
[1753667976348,4.57368788,188.54,188.5,0.72]
[1753667976517,11.15911387,188.58,188.52,4.57368788]
[1753667976714,41.89368788,188.57,188.52,5.23368788]
[1753667976939,42.55368788,188.57,188.53,0.66]
[1753667977140,37.98,188.57,188.53,0.66]
[1753667977323,146.3,188.54,188.53,0.66]
[1753667977748,146.3,188.54,188.52,4.57368788]
[1753667978838,146.3,188.54,188.51,10.53837828]
[1753667979038,146.96,188.54,188.51,5.23368788]
[1753667979241,146.96,188.54,188.51,4.57368788]
[1753667979541,146.96,188.54,188.5,9.93864461]
[1753667979744,146.96,188.54,188.5,10.59864461]
[1753667982128,146.96,188.54,188.51,4.57368788]
[1753667982334,146.3,188.54,188.51,10.53836045]
[1753667983455,146.33,188.54,188.51,10.53836045]
[1753667985252,146.99,188.54,188.51,9.87836045]
[1753667985853,0.66,188.53,188.5,0.06]
[1753667986353,0.66,188.52,188.5,0.06]
[1753667987933,5.23368788,188.51,188.5,0.06]
[1753667988455,0.66,188.51,188.5,0.06]
[1753667989454,42.51368788,188.53,188.5,0.06]
[1753667989963,0.66,188.52,188.5,0.06]
[1753667991838,0.66,188.51,188.5,0.06]
[1753667993032,42.51368788,188.53,188.5,0.06]
[1753667993460,146.33,188.54,188.52,4.57368788]
[1753667993759,146.33,188.54,188.53,0.66]
[1753667993961,146.33,188.54,188.53,10.53788349]
[1753667994129,0.03,188.54,188.53,10.53788349]
[1753667998256,0.03,188.54,188.53,9.87788349]
[1753667998647,0.03,188.54,188.53,4.57368788]
[1753667999943,0.03,188.54,188.53,9.87788349]
[1753668001561,0.03,188.54,188.53,5.30419561]
[1753668001764,0.03,188.54,188.53,9.87788349]
[1753668001933,0.03,188.54,188.53,4.57368788]
[1753668003354,0.03,188.54,188.53,9.87788349]
[1753668004562,0.75,188.54,188.51,9.87839819]
[1753668005853,0.03,188.54,188.51,10.54839819]
[1753668007068,0.75,188.54,188.51,9.87839819]
[1753668009354,0.75,188.54,188.51,10.54839819]
[1753668010567,0.72,188.53,188.5,0.06]
[1753668010771,5.29368788,188.53,188.5,0.06]
[1753668011062,5.29368788,188.52,188.5,0.06]
[1753668011861,0.72,188.51,188.5,0.06]
[1753668013668,5.29368788,188.51,188.5,0.06]
[1753668014372,4.57368788,188.51,188.5,0.06]
[1753668014577,4.57368788,188.52,188.5,0.06]
[1753668014754,150.87368788,188.52,188.5,0.06]
[1753668015071,151.59368788,188.52,188.5,0.06]
[1753668015564,0.72,188.51,188.5,0.06]
[1753668016268,146.3,188.52,188.5,5.30368788]
[1753668016471,146.3,188.52,188.51,4.57368788]
[1753668016673,146.3,188.52,188.51,5.24368788]
[1753668017776,146.3,188.52,188.51,10.54844624]
[1753668017946,146.3,188.52,188.51,9.87844624]
[1753668018355,146.3,188.52,188.51,5.30475836]
[1753668018648,146.3,188.52,188.51,9.87844624]
[1753668019879,146.3,188.52,188.5,10.60866342]
[1753668020575,146.3,188.52,188.5,6.03497554]
[1753668020773,146.3,188.52,188.5,5.36497554]
[1753668021576,146.3,188.52,188.51,0.67]
[1753668021954,146.3,188.52,188.5,0.06]
[1753668022169,146.3,188.52,188.5,5.30368788]
[1753668023279,146.3,188.52,188.5,0.06]
[1753668023579,0.72,188.51,188.5,0.06]
[1753668024175,146.3,188.52,188.5,5.30368788]
[1753668024749,146.3,188.52,188.5,4.63368788]
[1753668024973,146.3,188.52,188.51,5.24368788]
[1753668026278,146.3,188.52,188.51,10.54844624]
[1753668026663,0.03,188.54,188.51,10.54844624]
[1753668026858,0.03,188.54,188.52,4.57368788]
[1753668027759,0.71,188.53,188.5,0.06]
[1753668028574,10.58802238,188.53,188.5,0.06]
[1753668028781,0.71,188.52,188.5,0.06]
[1753668028962,5.28368788,188.52,188.5,0.06]
[1753668029386,0.71,188.51,188.5,0.06]
[1753668031293,37.29,188.54,188.5,0.06]
[1753668031603,0.71,188.52,188.5,0.06]
[1753668033993,0.71,188.51,188.5,0.06]
[1753668034311,5.28368788,188.51,188.5,0.06]
[1753668035509,52.24583476,188.51,188.5,0.06]
[1753668035993,42.78468397,188.47,188.46,0.06]
[1753668036173,26.0,188.44,188.42,0.06]
[1753668036374,4.57368788,188.43,188.42,0.06]
[1753668036579,5.28368788,188.43,188.42,0.06]
[1753668037188,0.71,188.46,188.42,0.06]
[1753668037387,6.01503978,188.5,188.44,4.57368788]
[1753668037589,47.13872766,188.5,188.45,4.57368788]
[1753668037793,0.71,188.49,188.45,4.57368788]
[1753668038607,0.71,188.48,188.44,4.57368788]
[1753668039711,0.71,188.48,188.44,9.88034518]
[1753668040210,0.71,188.48,188.44,10.55034518]
[1753668040704,42.56503978,188.5,188.44,9.88034518]
[1753668040900,30.57368788,188.45,188.42,0.06]
[1753668041099,47.35837185,188.43,188.42,0.06]
[1753668041301,84.61837185,188.43,188.42,0.06]
[1753668041485,85.32837185,188.43,188.42,0.06]
[1753668041700,16.78468397,188.42,188.37,0.06]
[1753668041917,4.57368788,188.39,188.37,0.06]
[1753668042118,4.57368788,188.38,188.37,0.06]
[1753668042416,5.28368788,188.38,188.37,0.06]
[1753668045421,10.59210703,188.38,188.37,0.06]
[1753668045922,27.376791,188.38,188.37,0.06]
[1753668048103,4.57368788,188.4,188.37,0.06]
[1753668048406,63.28,188.42,188.38,4.57368788]
[1753668048618,9.87985575,188.46,188.4,4.57368788]
[1753668048818,37.28,188.45,188.41,0.67]
[1753668049326,37.28,188.45,188.41,5.24368788]
[1753668049538,8.07449,188.48,188.43,4.57368788]
[1753668049714,2.6234091,188.51,188.45,4.57368788]
[1753668049900,37.28,188.5,188.46,4.57368788]
[1753668050097,26.0,188.48,188.47,0.67]
[1753668050509,5.30483497,188.51,188.47,0.67]
[1753668050711,47.89821501,188.52,188.47,5.24368788]
[1753668050915,37.31,188.52,188.48,5.24368788]
[1753668051102,0.03,188.52,188.5,4.57368788]
[1753668051311,0.03,188.52,188.51,0.67]
[1753668052407,0.03,188.52,188.49,5.24368788]
[1753668052624,0.03,188.52,188.47,5.24368788]
[1753668052832,0.03,188.52,188.45,8.11002952]
[1753668052833,8.15002952,188.51,188.45,8.11002952]
[1753668053306,8.15002952,188.51,188.46,7.44002952]
[1753668053503,70.75002952,188.52,188.47,0.67]
[1753668053932,5.30503978,188.5,188.47,0.67]
[1753668054232,5.30503978,188.5,188.46,7.44002952]
[1753668054419,5.30503978,188.5,188.46,8.11002952]
[1753668055020,13.4150693,188.5,188.44,0.68]
[1753668055329,12.7450693,188.5,188.45,7.44002952]
[1753668055713,12.7450693,188.5,188.46,0.68]
[1753668056335,159.04481889,188.51,188.47,0.68]
[1753668057120,0.67,188.5,188.45,7.44002952]
[1753668057421,8.11002952,188.5,188.45,8.12002952]
[1753668057809,151.60478937,188.51,188.45,7.44002952]
[1753668058110,159.04481889,188.51,188.46,0.68]
[1753668058325,159.71481889,188.51,188.46,0.68]
[1753668058918,8.11002952,188.5,188.46,0.68]
[1753668059123,8.11002952,188.5,188.45,7.44002952]
[1753668059322,8.11002952,188.5,188.45,8.12002952]
[1753668059940,0.67,188.49,188.45,0.68]
[1753668060119,0.67,188.49,188.44,7.44002952]
[1753668060318,0.67,188.49,188.44,8.12002952]
[1753668060637,7.44002952,188.47,188.42,8.12002952]
[1753668060840,0.67,188.46,188.4,5.30779168]
[1753668061042,7.44002952,188.45,188.4,8.12002952]
[1753668061216,7.44002952,188.44,188.4,0.68]
[1753668061643,37.26,188.46,188.4,0.68]
[1753668061644,44.70002952,188.46,188.41,0.68]
[1753668061821,50.00627869,188.46,188.41,0.68]
[1753668062143,50.67627869,188.46,188.41,0.68]
[1753668062345,0.67,188.45,188.41,0.68]
[1753668062727,8.11002952,188.44,188.39,7.44002952]
[1753668063022,7.44002952,188.4,188.37,0.06]
[1753668063509,8.11002952,188.4,188.37,0.06]
[1753668063714,0.67,188.39,188.37,0.06]
[1753668063918,8.11002952,188.39,188.37,0.06]
[1753668064142,13.41820007,188.39,188.37,0.06]
[1753668064513,8.11002952,188.38,188.37,0.06]
[1753668065945,13.41844867,188.38,188.37,0.06]
[1753668069318,8.11002952,188.38,188.37,0.06]
[1753668069519,26.0,188.39,188.37,0.06]
[1753668069831,33.44002952,188.39,188.37,0.06]
[1753668070023,38.74820194,188.39,188.37,0.06]
[1753668070433,7.44002952,188.38,188.37,0.06]
[1753668071038,8.11002952,188.38,188.37,0.06]
[1753668071317,30.20313264,188.38,188.37,0.06]
[1753668072243,67.48313264,188.38,188.37,0.06]
[1753668074849,64.61556338,188.38,188.37,0.06]
[1753668077338,37.28,188.38,188.37,0.06]
[1753668077643,73.16081437,188.39,188.37,0.06]
[1753668078136,63.28,188.39,188.38,0.68]
[1753668078444,47.19006826,188.41,188.38,0.68]
[1753668079354,0.03,188.41,188.4,4.57246026]
[1753668079547,0.03,188.41,188.4,5.25246026]
[1753668081228,0.03,188.41,188.4,10.56031588]
[1753668084234,0.03,188.41,188.4,5.25246026]
[1753668084556,0.03,188.41,188.37,0.74]
[1753668084848,0.7,188.41,188.37,5.31246026]
[1753668085246,147.01,188.4,188.37,0.06]
[1753668085581,4.57246026,188.38,188.37,0.06]
[1753668085944,5.28246026,188.38,188.37,0.06]
[1753668086128,27.37556338,188.38,188.37,0.06]
[1753668086756,30.2540918,188.38,188.37,0.06]
[1753668087053,7.45098868,188.39,188.37,0.06]
[1753668087734,8.16098868,188.39,188.37,0.06]
[1753668088232,0.71,188.38,188.37,0.06]
[1753668088422,8.16098868,188.38,188.37,0.06]
[1753668089846,24.94567265,188.38,188.37,0.06]
[1753668090049,50.94567265,188.38,188.37,0.06]
[1753668090367,56.2540918,188.38,188.37,0.06]
[1753668090869,55.5440918,188.38,188.37,0.06]
[1753668091169,56.2540918,188.38,188.37,0.06]
[1753668091371,93.5340918,188.38,188.37,0.06]
[1753668093044,42.78468397,188.35,188.34,0.06]
[1753668093266,87.51567265,188.35,188.34,0.06]
[1753668093437,88.22567265,188.35,188.34,0.06]
[1753668093770,94.47577265,188.35,188.34,0.06]
[1753668094336,99.78503731,188.35,188.34,0.06]
[1753668094539,16.78468397,188.34,188.33,0.06]
[1753668094847,24.94567265,188.34,188.33,0.06]
[1753668095761,30.25521921,188.34,188.33,0.06]
[1753668096156,30.25521921,188.34,188.33,1e-08]
[1753668096466,37.70620789,188.34,188.33,1e-08]
[1753668096773,40.4831182,188.34,188.33,1e-08]
[1753668097200,33.03212952,188.34,188.33,1e-08]
[1753668100635,33.03212952,188.34,188.31,1e-08]
[1753668100636,26.0,188.32,188.31,1e-08]
[1753668100892,94.98666133,188.32,188.31,1e-08]
[1753668101080,95.69666133,188.32,188.31,1e-08]
[1753668101890,98.46960631,188.32,188.31,1e-08]
[1753668102056,103.77971676,188.32,188.31,1e-08]
[1753668104257,107.66458479,188.32,188.31,1e-08]
[1753668106493,146.29999999,188.3,188.29,0.06]
[1753668106672,191.05098867,188.3,188.29,0.06]
[1753668106998,188.17717154,188.3,188.29,0.06]
[1753668108392,210.27252996,188.3,188.29,0.77]
[1753668108589,0.03,188.41,188.29,5.34717155]
[1753668108766,0.03,188.41,188.31,26.0]
[1753668108970,0.03,188.41,188.31,5.30364487]
[1753668109274,0.03,188.41,188.4,4.57717155]
[1753668110283,0.03,188.41,188.4,9.88502717]
[1753668110679,0.03,188.41,188.4,10.41581273]
[1753668110993,0.03,188.41,188.4,13.56279343]
[1753668115101,0.03,188.41,188.4,13.03200787]
[1753668117089,0.03,188.41,188.4,29.81669184]
[1753668117293,0.03,188.45,188.41,0.28432314]
[1753668117479,0.03,188.45,188.44,7.43982911]
[1753668117688,0.03,188.45,188.44,12.74655804]
[1753668121589,0.03,188.45,188.44,7.43982911]
[1753668122099,0.03,188.45,188.44,12.74655804]
[1753668122715,0.03,188.45,188.44,7.43982911]
[1753668123003,0.03,188.45,188.44,12.74655804]
[1753668125383,0.03,188.45,188.44,7.43982911]
[1753668126204,0.74,188.45,188.44,7.43982911]
[1753668126705,0.03,188.45,188.44,7.43982911]
[1753668128510,0.03,188.45,188.4,0.53078556]
[1753668128511,15.61965822,188.45,188.4,0.53078556]
[1753668128713,15.61965822,188.45,188.36,26.0]
[1753668128714,26.0,188.36,188.3,5.31067445]
[1753668128885,0.71,188.35,188.3,5.31067445]
[1753668129086,3.1696678,188.35,188.3,7.43982911]
[1753668129317,3.1696678,188.35,188.29,12.81077098]
[1753668129318,0.71,188.34,188.29,12.81077098]
[1753668129606,0.53078556,188.35,188.31,7.43982911]
[1753668129793,26.53078556,188.36,188.33,0.06]
[1753668130308,27.24078556,188.36,188.33,0.06]
[1753668130887,7.43982911,188.34,188.33,0.06]
[1753668131186,7.97061467,188.34,188.33,0.06]
[1753668131392,8.68061467,188.34,188.33,0.06]
[1753668132320,26.0,188.31,188.29,0.06]
[1753668132486,13.28128912,188.3,188.29,0.06]
[1753668132684,13.99128912,188.3,188.29,0.06]
[1753668133102,8.68061467,188.3,188.29,0.06]
[1753668133888,1.24078556,188.3,188.29,0.06]
[1753668134427,26.0,188.3,188.29,0.06]
[1753668135018,26.0,188.31,188.29,7.49982911]
[1753668135226,0.53078556,188.33,188.3,7.43982911]
[1753668135606,26.0,188.32,188.3,7.43982911]
[1753668136906,2.72355529,188.34,188.31,7.43982911]
[1753668137106,26.0,188.33,188.31,7.43982911]
[1753668137332,8.68061467,188.36,188.31,7.43982911]
[1753668137503,26.0,188.35,188.32,7.43982911]
[1753668137831,26.0,188.35,188.33,7.43982911]
[1753668138210,26.53078556,188.37,188.34,7.43982911]
[1753668138918,0.71,188.36,188.32,7.43982911]
[1753668139125,27.24078556,188.35,188.32,7.43982911]
[1753668139328,29.83651417,188.35,188.32,7.43982911]
[1753668139718,29.83651417,188.35,188.31,5.31034264]
[1753668139919,29.83651417,188.35,188.32,7.43982911]
[1753668140532,29.30572861,188.35,188.32,7.43982911]
[1753668140715,29.30572861,188.35,188.33,7.43982911]
[1753668141443,0.53078556,188.37,188.34,7.43982911]
[1753668141610,1.24078556,188.41,188.36,7.43982911]
[1753668141808,26.0,188.4,188.37,7.43982911]
[1753668142112,0.71,188.4,188.37,7.43982911]
[1753668142317,26.0,188.39,188.37,7.43982911]
[1753668142814,26.0,188.39,188.37,12.74850277]
[1753668143015,0.71,188.4,188.37,12.74850277]
[1753668143509,12.74684509,188.43,188.37,12.74850277]
[1753668143510,0.53078556,188.44,188.39,7.43982911]
[1753668143726,0.03,188.45,188.43,7.43982911]
[1753668144047,26.0,188.42,188.36,39.04]
[1753668144336,1.24078556,188.41,188.37,7.43982911]
[1753668144530,1.24078556,188.41,188.36,46.47982911]
[1753668144937,26.0,188.42,188.4,7.43982911]
[1753668145126,2.65573005,188.45,188.41,7.43982911]
[1753668145309,0.03,188.45,188.44,7.43982911]
[1753668147108,0.03,188.45,188.44,12.74655804]
[1753668147417,0.03,188.45,188.44,13.34655804]
[1753668149532,0.03,188.45,188.44,12.74655804]
[1753668150133,0.03,188.45,188.44,7.43982911]
[1753668152640,0.03,188.45,188.44,12.74655804]
[1753668152855,0.03,188.45,188.44,13.34655804]
[1753668153723,0.03,188.45,188.44,13.63088118]
[1753668156848,0.03,188.45,188.44,10.75571343]
[1753668158539,0.03,188.45,188.44,32.10505876]
[1753668158942,0.03,188.45,188.44,27.5403974]
[1753668160852,0.03,188.45,188.44,10.15571343]
[1753668161649,0.7,188.45,188.41,5.30736954]
[1753668161871,0.67,188.44,188.43,38.76]
[1753668162246,0.03,188.45,188.43,43.32466136]
[1753668162631,0.7,188.45,188.43,43.32466136]
[1753668162937,0.03,188.45,188.44,4.56466136]
[1753668164859,0.03,188.45,188.44,9.87139029]
[1753668165042,0.03,188.45,188.44,10.15571343]
[1753668168252,0.03,188.49,188.45,17.06900711]
[1753668168456,0.03,188.49,188.48,4.8489845]
[1753668168760,0.03,188.49,188.48,43.5489845]
[1753668168960,0.03,188.49,188.48,49.45458721]
[1753668169252,0.03,188.52,188.51,4.8489845]
[1753668169463,0.03,188.52,188.51,44.05946033]
[1753668170550,0.03,188.52,188.51,66.74890266]
[1753668170860,0.03,188.56,188.52,0.28432314]
[1753668171053,0.03,188.56,188.52,5.4489845]
[1753668172951,0.03,188.56,188.52,10.15346147]
[1753668173352,0.03,188.56,188.52,10.75346147]
[1753668174272,0.03,188.56,188.52,10.15346147]
[1753668175565,0.03,188.56,188.55,42.78468397]
[1753668175871,0.03,188.6,188.57,0.28432314]
[1753668176048,0.03,188.6,188.59,21.63366847]
[1753668177768,0.03,188.6,188.59,26.93617655]
[1753668180147,0.03,188.6,188.59,10.15149258]
[1753668180347,0.03,188.6,188.55,5.30340398]
[1753668180348,0.69,188.6,188.55,5.30340398]
[1753668180558,0.69,188.6,188.54,2.123988]
[1753668180753,5.78544692,188.6,188.55,38.48]
[1753668180947,5.22466136,188.59,188.55,38.48]
[1753668181249,0.66,188.58,188.57,4.56466136]
[1753668181576,0.66,188.58,188.57,38.48]
[1753668182369,0.66,188.58,188.57,43.04466136]
[1753668182549,0.66,188.58,188.57,38.48]
[1753668182962,0.66,188.58,188.55,38.5]
[1753668183170,1.19078556,188.58,188.55,38.5]
[1753668183357,6.49359551,188.58,188.55,38.5]
[1753668183548,0.66,188.57,188.55,38.5]
[1753668183748,0.66,188.57,188.53,43.06466136]
[1753668184754,0.66,188.56,188.55,4.56466136]
[1753668185571,0.66,188.56,188.54,4.56466136]
[1753668185877,0.66,188.55,188.54,4.56466136]
[1753668186051,0.66,188.55,188.53,48.36872986]
[1753668186246,0.53078556,188.58,188.54,4.56466136]
[1753668186658,144.76999999,188.59,188.54,9.86854192]
[1753668186859,0.66,188.57,188.54,9.86854192]
[1753668187072,144.76999999,188.59,188.56,4.56466136]
[1753668187265,144.76999999,188.59,188.58,4.56466136]
[1753668187463,0.66,188.59,188.58,4.56466136]
[1753668188172,0.03,188.6,188.58,4.56466136]
[1753668188381,0.69,188.6,188.59,4.56466136]
[1753668188560,0.69,188.6,188.59,42.98466136]
[1753668188878,0.03,188.6,188.59,45.84887832]
[1753668190280,0.69,188.6,188.59,45.84887832]
[1753668191560,0.69,188.6,188.59,51.1513864]
[1753668192183,0.69,188.6,188.59,45.84887832]
[1753668193276,0.69,188.6,188.59,51.1513864]
[1753668193577,0.69,188.6,188.59,45.84887832]
[1753668194176,0.69,188.6,188.59,51.1513864]
[1753668194482,0.69,188.6,188.59,45.84887832]
[1753668195181,0.03,188.6,188.59,51.1513864]
[1753668195380,0.03,188.6,188.59,51.43570954]
[1753668195586,0.03,188.6,188.59,52.00570954]
[1753668195886,0.03,188.6,188.59,68.79039351]
[1753668196389,0.03,188.6,188.59,13.01570954]
[1753668196557,0.03,188.6,188.59,51.0513864]
[1753668196957,0.03,188.6,188.59,51.33570954]
[1753668197563,0.1,188.61,188.6,0.28432314]
[1753668197779,0.1,188.61,188.6,8.81342415]
[1753668200283,0.1,188.61,188.6,14.11565108]
[1753668200485,0.03,188.62,188.61,24.49788543]
[1753668200675,0.03,188.62,188.61,7.71320146]
[1753668201470,0.69,188.62,188.6,12.79110525]
[1753668201779,0.03,188.61,188.6,0.06]
[1753668202161,0.69,188.61,188.6,0.06]
[1753668202587,8.11887832,188.61,188.6,0.06]
[1753668202797,13.95160969,188.61,188.6,0.06]
[1753668203291,26.0,188.58,188.53,38.24]
[1753668203480,8.61966388,188.57,188.53,38.24]
[1753668203782,8.61966388,188.57,188.51,38.22]
[1753668203783,7.42887832,188.54,188.51,38.22]
[1753668203990,7.42887832,188.54,188.5,0.06]
[1753668203991,0.66,188.53,188.5,0.06]
[1753668204161,0.66,188.52,188.5,7.48887832]
[1753668204355,0.66,188.52,188.5,12.79383941]
[1753668205487,0.66,188.52,188.5,7.48887832]
[1753668205661,0.72,188.51,188.5,0.06]
[1753668207473,1.25078556,188.51,188.5,0.06]
[1753668208293,0.72,188.51,188.5,0.06]
[1753668210489,26.0,188.52,188.5,0.06]
[1753668210794,26.0,188.52,188.5,4.62308888]
[1753668211161,1.25078556,188.54,188.5,4.62308888]
[1753668211367,0.72,188.54,188.51,4.56308888]
[1753668211890,0.72,188.53,188.5,4.62308888]
[1753668212289,0.72,188.52,188.5,4.62308888]
[1753668212494,0.72,188.54,188.5,4.62308888]
[1753668212790,0.72,188.53,188.5,4.62308888]
[1753668212997,0.72,188.53,188.51,5.30475836]
[1753668213291,5.09387444,188.55,188.51,5.30475836]
[1753668213496,0.72,188.54,188.51,5.30475836]
[1753668214192,0.72,188.54,188.5,9.92806175]
[1753668214698,0.72,188.53,188.5,9.92806175]
[1753668215382,0.72,188.53,188.5,4.62308888]
[1753668216095,0.72,188.53,188.5,9.92803945]
[1753668217088,149.33308887,188.55,188.5,9.92803945]
[1753668217398,0.72,188.54,188.5,9.92803945]
[1753668217772,1.25078556,188.54,188.5,9.92803945]
[1753668218095,0.72,188.54,188.5,9.92803945]
[1753668218282,1.25078556,188.54,188.5,9.92803945]
[1753668218485,0.72,188.54,188.5,9.92803945]
[1753668218998,1.25078556,188.54,188.5,9.92803945]
[1753668219587,0.72,188.53,188.5,9.92803945]
[1753668220796,145.48999999,188.55,188.5,9.92803945]
[1753668221101,1.25078556,188.54,188.5,9.92803945]
[1753668221300,1.25078556,188.54,188.51,4.56308888]
[1753668221691,0.53078556,188.54,188.5,4.62308888]
[1753668222005,0.72,188.53,188.5,9.92809803]
[1753668223292,0.72,188.53,188.51,4.56308888]
[1753668223521,145.48999999,188.55,188.51,4.56308888]
[1753668223981,0.72,188.54,188.51,9.86776134]
[1753668224379,144.76999999,188.55,188.53,4.56308888]
[1753668224600,144.76999999,188.55,188.54,4.56308888]
[1753668226200,144.76999999,188.55,188.54,9.86700316]
[1753668226383,145.48999999,188.55,188.54,9.86700316]
[1753668227499,144.76999999,188.55,188.54,9.86700316]
[1753668227901,170.76999999,188.59,188.54,10.49700316]
[1753668228113,171.48999999,188.59,188.57,4.56308888]
[1753668228297,171.48999999,188.59,188.56,4.56308888]
[1753668228502,0.72,188.58,188.56,4.56308888]
[1753668229415,170.76999999,188.59,188.57,4.56308888]
[1753668229713,170.76999999,188.59,188.58,4.56308888]
[1753668229887,170.76999999,188.59,188.58,9.86587814]
[1753668230088,0.03,188.6,188.58,10.49587814]
[1753668230284,0.03,188.6,188.59,4.06308888]
[1753668231620,0.03,188.6,188.59,9.36559696]
[1753668232825,0.03,188.6,188.59,10.2799201]
[1753668233620,1e-08,188.6,188.59,27.06460407]
[1753668238419,1e-08,188.6,188.59,9.6499201]
[1753668238594,1e-08,188.6,188.59,9.36559696]
[1753668239096,1e-08,188.6,188.59,4.06308888]
[1753668239405,0.72000001,188.6,188.59,9.36559696]
[1753668240523,0.72000001,188.6,188.59,4.06308888]
[1753668240698,0.72000001,188.6,188.56,4.56308888]
[1753668240892,0.72000001,188.6,188.54,43.14391428]
[1753668240893,1.25078557,188.6,188.54,43.14391428]
[1753668241096,1.25078557,188.6,188.56,4.56308888]
[1753668241294,0.72,188.59,188.55,4.56308888]
[1753668242204,0.53078557,188.6,188.56,5.30335171]
[1753668242526,0.72,188.58,188.56,5.30335171]
[1753668242827,0.53078557,188.6,188.57,4.56308888]
[1753668242995,5.28308888,188.59,188.54,42.40308888]